fUST/lending_fUST_20260320
["ID","MTS","AMOUNT","RATE_DAILY","PERIOD"]
[408623760,1773991840378,-500.0,5.59e-05,2]
[408623761,1773991840388,-500.0,5.59e-05,2]
[408623762,1773991840399,-340.60230129,5.59e-05,2]
[408623763,1773991840409,-500.0,5.59e-05,2]
[408623764,1773991840419,-500.0,5.59e-05,2]
[408623765,1773991840428,-500.0,5.59e-05,2]
[408623766,1773991840439,-500.0,5.59e-05,2]
[408623767,1773991840449,-500.0,5.59e-05,2]
[408623768,1773991840459,-500.0,5.59e-05,2]
[408623769,1773991840469,-500.0,5.59e-05,2]
[408623770,1773991840479,-500.0,5.59e-05,2]
[408623771,1773991840489,-500.0,5.59e-05,2]
[408623772,1773991840499,-457.3557879,5.59e-05,2]
[408623787,1773991842976,-42.6442121,5.59e-05,2]
[408623788,1773991842986,-500.0,5.59e-05,2]
[408623789,1773991842996,-22.8057879,5.59e-05,2]
[408623811,1773993032073,-469.74779629,4.948e-05,2]
[408623814,1773993032118,-90.48460968,4.948e-05,2]
[408623815,1773993032129,-469.74779629,4.998e-05,2]
[408623816,1773993032160,-281.47432516,4.998e-05,2]
[408623833,1773993038591,-14643.02870492,4.998e-05,2]
[408623834,1773993038603,-943.065,4.998e-05,2]
[408623835,1773993038616,-2075.00998034,4.998e-05,2]
[408623841,1773993040846,-20737.65022964,4.998e-05,2]
[408623852,1773993043930,-585.75366434,4.998e-05,2]
[408623857,1773993046574,-119441.74627726,4.998e-05,2]
[408623858,1773993046587,-39735.72970069,4.999e-05,2]
[408623859,1773993046599,-1077.33476705,4.999e-05,2]
[408623979,1773994239081,-1113.7729885,4.036e-05,2]
[408623980,1773994239091,-909.959691,4.47e-05,2]
[408623981,1773994239103,-909.959691,4.658e-05,2]
[408623982,1773994239113,-500.0,4.773e-05,2]
[408623983,1773994239123,-500.0,4.773e-05,2]
[408623984,1773994239133,-48757.36305738,4.798e-05,2]
[408623985,1773994239146,-3233.56746409,4.798e-05,2]
[408623986,1773994239158,-5617.89056689,4.798e-05,2]
[408624027,1773994246714,-1680.12722241,4.798e-05,2]
[408624028,1773994246729,-262.071,4.798e-05,2]
[408624029,1773994857559,167.5150104,1.911e-05,2]
[408624060,1773995432432,-276.36,4.293e-05,2]
[408624061,1773995432458,-4128.22400409,4.293e-05,2]
[408624062,1773995432471,-176.19316576,4.336e-05,2]
[408624063,1773995432481,-546.62725478,4.37e-05,2]
[408624064,1773995432492,-199.0,4.597e-05,2]
[408624065,1773995432502,-5489.67762395,4.598e-05,2]
[408624066,1773995432515,-4885.23839631,4.598e-05,2]
[408624067,1773995432528,-12855.81806096,4.598e-05,2]
[408624068,1773995432540,-1078.08916142,4.598e-05,2]
[408624069,1773995432554,-997.32222237,4.598e-05,2]
[408624401,1773995440919,-570.85184417,4.598e-05,2]
[408624408,1773995444144,-382.35591491,4.598e-05,2]
[408624409,1773995444161,-658.83621924,4.598e-05,2]
[408624410,1773995444173,-1430.995,4.598e-05,2]
[408624411,1773995444186,-840.75421259,4.598e-05,2]
[408624412,1773995444195,-274.72626823,4.598e-05,2]
[408624417,1773995446689,-3877.07546754,4.598e-05,2]
[408624418,1773995446715,-33654.62419998,4.598e-05,2]
[408624441,1773996631479,-909.959691,4.846e-05,2]
[408624442,1773996631490,-355.51,4.874e-05,2]
[408624443,1773996631500,-300.0,4.883e-05,2]
[408624444,1773996631510,-1874.65562877,4.884e-05,2]
[408624446,1773996631520,-6035.02664143,4.884e-05,2]
[408624696,1773996639360,-19183.57579532,4.884e-05,2]
[408624698,1773996639373,-502.38986693,4.973e-05,2]
[408624700,1773996639387,-500.0,4.973e-05,2]
[408624701,1773996639400,-2078.64814754,4.973e-05,2]
[408624752,1773996646064,-285.98335816,4.973e-05,2]
[408624754,1773996646075,-547.0,4.98e-05,2]
[408624756,1773996646085,-1041.67227061,5e-05,2]
[408625375,1773997832239,-162.21531717,3.906e-05,2]
[408625376,1773997832250,-5000.0,3.945e-05,2]
[408625377,1773997832260,-454.979845,4.406e-05,2]
[408625378,1773997832270,-454.979845,4.591e-05,2]
[408625379,1773997832280,-454.979845,4.777e-05,2]
[408625380,1773997832290,-1200.0,4.799e-05,2]
[408625381,1773997832300,-353.34,4.869e-05,2]
[408625382,1773997832311,-500.0,4.873e-05,2]
[408625383,1773997832321,-856.11153155,4.9e-05,2]
[408625390,1773997837732,-74959.80747455,4.9e-05,2]
[408625391,1773997837787,-21696.33832271,4.9e-05,2]
[408625400,1773997840609,-1174.76625523,4.9e-05,2]
[408625405,1773997843215,-2149.33,4.851e-05,2]
[408625406,1773997843271,-1071.17345952,4.851e-05,2]
[408625408,1773997846248,-1779.49654048,4.851e-05,2]
[408625409,1773997846261,-25739.33285618,4.9e-05,2]
[408625449,1773999031843,-730.43359696,4.34e-05,2]
[408625451,1773999031854,-619.21193722,4.384e-05,2]
[408625456,1773999031897,-360.3915,4.384e-05,2]
[408625458,1773999031909,-723.900005,4.384e-05,2]
[408625490,1773999037922,-317.96272121,4.384e-05,2]
[408625492,1773999037935,-2409.09383657,4.384e-05,2]
[408625494,1773999037946,-300.0,4.78e-05,2]
[408625495,1773999037955,-1742.6764359,4.781e-05,2]
[408625496,1773999037965,-1272.5734852,4.781e-05,2]
[408625498,1773999037975,-3244.79411393,4.8e-05,2]
[408625506,1773999040251,-1091.36838747,4.8e-05,2]
[408625508,1773999040353,-890.37040594,4.8e-05,2]
[408625509,1773999040366,-1000.0,4.8e-05,2]
[408625516,1773999043103,-1280.40065837,4.8e-05,2]
[408625517,1773999043113,-2864.67399128,4.8e-05,2]
[408625518,1773999043127,-284.64068081,4.8e-05,2]
[408625519,1773999043139,-500.0,4.8e-05,2]
[408625520,1773999043150,-5439.00311301,4.8e-05,2]
[408625534,1773999046388,-686.84806561,4.8e-05,2]
[408625535,1773999046446,-9936.71713502,4.8e-05,2]
[408625536,1773999046459,-524.0,4.8e-05,2]
[408625568,1774000232032,-1407.63391474,4.1e-05,2]
[408625617,1774000243286,-1497.58058506,4.1e-05,2]
[408625618,1774000243300,-454.979845,4.962e-05,2]
[408625619,1774000243313,-522.43956993,4.997e-05,2]
[408625622,1774000246377,-160.0,4.813e-05,2]
[408625623,1774000246390,-122.11022071,4.997e-05,2]
[408625624,1774000246406,-3298.8864978,4.997e-05,2]
[408625671,1774001438304,-214.849313,4.53e-05,2]
[408625672,1774001438315,-772.77898101,4.9e-05,2]
[408625675,1774001438329,-1677.61615989,4.9e-05,2]
[408625676,1774001438355,-8152.0700599,4.9e-05,2]
[408625677,1774001438369,-7116.0371398,4.9e-05,2]
[408625678,1774001438379,-6512.17472526,5e-05,2]
[408625679,1774001438392,-8493.29194579,5e-05,2]
[408625680,1774001438402,-279.19828762,5.04e-05,2]
[408625689,1774001440672,-3515.3127573,5.04e-05,2]
[408625738,1774002632736,-4199.55658805,3.918e-05,2]
[408625739,1774002632748,-358.5249,3.918e-05,2]
[408625751,1774002638520,-441.91851195,3.918e-05,2]
[408625752,1774002638533,-444.08148805,3.958e-05,2]
[408625753,1774002638545,-253.19172798,3.958e-05,2]
[408625758,1774002638628,-2525.36643003,3.958e-05,2]
[408625820,1774002641011,-380.36253887,3.958e-05,2]
[408625822,1774002641024,-266.35474417,3.958e-05,2]
[408625824,1774002641033,-1452.91160284,4.161e-05,2]
[408625826,1774002641045,-5276.11361017,4.161e-05,2]
[408625849,1774002643544,-218.62198039,4.161e-05,2]
[408625850,1774002643554,-196.1476245,4.279e-05,2]
[408625851,1774002643564,-500.0,4.752e-05,2]
[408625852,1774002643574,-8005.25551172,4.895e-05,2]
[408625853,1774002643586,-4599.58984901,4.895e-05,2]
[408625854,1774002643600,-2509.34647797,4.895e-05,2]
[408625855,1774002643611,-14064.14426696,4.895e-05,2]
[408625898,1774002646665,-34507.73945,4.895e-05,2]
[408625900,1774002646676,-500.0,4.973e-05,2]
[408625902,1774002646686,-500.0,4.973e-05,2]
[408625904,1774002646695,-4431.09192432,5e-05,2]
[408625906,1774002646708,-4476.3278529,5e-05,2]
[408625983,1774003295034,152.0,3e-08,60]
[408625984,1774003295409,152.0,4e-08,60]
[408625985,1774003296796,152.0,6e-08,60]
[408626022,1774003831857,-1421.2607696,3.881e-05,2]
[408626023,1774003831869,-572.61040205,3.881e-05,2]
[408626024,1774003831879,-106.84323093,4.04e-05,2]
[408626025,1774003831891,-393.15676907,4.04e-05,2]
[408626026,1774003831901,-500.0,4.04e-05,2]
[408626027,1774003831912,-5801.45714647,4.601e-05,2]
[408626044,1774003837650,-944.56342201,4.601e-05,2]
[408626050,1774003837706,-142365.23069829,4.601e-05,2]
[408626056,1774003837763,-1392544.63934353,4.601e-05,2]
[408626058,1774003837774,-212.47684426,4.683e-05,2]
[408626061,1774003837784,-500.0,4.683e-05,2]
[408626063,1774003837795,-504.23680696,4.683e-05,2]
[408626065,1774003837805,-1488524.87206459,4.701e-05,2]
[408626067,1774003837815,-500.0,4.759e-05,2]
[408626069,1774003837826,-21429.720521,4.8e-05,2]
[408626071,1774003837836,-35501.3168785,4.801e-05,2]
[408626073,1774003837846,-3636.6617295,4.801e-05,2]
[408626075,1774003837855,-32882.7445714,4.801e-05,2]
[408626077,1774003837866,-501.55993991,4.873e-05,2]
[408626079,1774003837876,-914.55897309,4.939e-05,2]
[408626081,1774003837886,-501.74682683,4.973e-05,2]
[408626083,1774003837896,-501.40279508,4.973e-05,2]
[408626085,1774003837905,-501.05400889,4.973e-05,2]
[408626086,1774003837916,-502.59243544,4.973e-05,2]
[408626087,1774003837926,-500.67031632,4.973e-05,2]
[408626088,1774003837935,-505.66274779,4.973e-05,2]
[408626089,1774003837945,-91.03385771,4.973e-05,2]
[408626090,1774003837958,-408.96614229,4.973e-05,2]
[408626091,1774003837969,-1113.32091783,5e-05,2]
[408626098,1774003840288,-671.77936835,5e-05,2]
[408626099,1774003840301,-3924.9608205,5e-05,2]
[408626100,1774003840342,-6423.94677741,5e-05,2]
[408626111,1774003842812,-1563.83098617,5e-05,2]
[408626143,1774003845978,-3830.80055315,5e-05,2]
[408626144,1774003845988,-5050.91531831,5e-05,2]
[408626145,1774003845999,-11097.42442129,5e-05,2]
[408626146,1774003846009,-9881.04393013,5e-05,2]
[408626147,1774003846019,-12402.28829579,5e-05,2]
[408626148,1774003846029,-12313.80491254,5e-05,2]
[408626149,1774003846039,-242.10513427,5e-05,2]
[408626150,1774003846049,-427.5135986,5e-05,2]
[408626151,1774003846059,-394.46746172,5e-05,2]
[408626152,1774003846069,-444.40909823,5e-05,2]
[408626153,1774003846079,-163.75958922,5e-05,2]
[408626154,1774003846090,-186.80340711,5e-05,2]
[408626155,1774003846100,-191.75193744,5e-05,2]
[408626156,1774003846110,-194.06475259,5e-05,2]
[408626157,1774003846121,-166.20925394,5e-05,2]
[408626158,1774003846131,-500.0,5e-05,2]
[408626159,1774003846140,-500.0,5e-05,2]
[408626160,1774003846150,-500.0,5e-05,2]
[408626161,1774003846160,-551.10088862,5e-05,2]
[408626162,1774003846170,-1503.19447297,5e-05,2]
[408626163,1774003846180,-1503.19447297,5e-05,2]
[408626164,1774003846190,-1503.19447297,5e-05,2]
[408626165,1774003846200,-1503.19447297,5e-05,2]
[408626166,1774003846210,-1503.19447297,5e-05,2]
[408626167,1774003846221,-1503.19447297,5e-05,2]
[408626168,1774003846231,-1503.19447297,5e-05,2]
[408626169,1774003846242,-1503.19447297,5e-05,2]
[408626170,1774003846253,-1503.19447297,5e-05,2]
[408626171,1774003846263,-1503.19447297,5e-05,2]
[408626172,1774003846273,-1503.19447297,5e-05,2]
[408626173,1774003846283,-1503.19447297,5e-05,2]
[408626174,1774003846293,-1503.19447297,5e-05,2]
[408626175,1774003846303,-1503.19447297,5e-05,2]
[408626176,1774003846313,-1503.19447297,5e-05,2]
[408626177,1774003846323,-1503.19447297,5e-05,2]
[408626178,1774003846333,-1503.19447297,5e-05,2]
[408626179,1774003846343,-1503.19447297,5e-05,2]
[408626180,1774003846354,-1503.19447297,5e-05,2]
[408626181,1774003846364,-1503.19447297,5e-05,2]
[408626182,1774003846374,-1503.19447297,5e-05,2]
[408626183,1774003846383,-1503.19447297,5e-05,2]
[408626184,1774003846393,-1503.19447297,5e-05,2]
[408626185,1774003846404,-1503.19447297,5e-05,2]
[408626186,1774003846413,-1503.19447297,5e-05,2]
[408626187,1774003846424,-1503.19447297,5e-05,2]
[408626188,1774003846434,-1503.19447297,5e-05,2]
[408626189,1774003846445,-1503.19447297,5e-05,2]
[408626190,1774003846455,-1503.19447297,5e-05,2]
[408626191,1774003846466,-1503.19447297,5e-05,2]
[408626192,1774003846476,-1503.19447297,5e-05,2]
[408626193,1774003846487,-1503.19447297,5e-05,2]
[408626194,1774003846497,-1503.19447297,5e-05,2]
[408626195,1774003846507,-1503.19447297,5e-05,2]
[408626196,1774003846518,-1503.19447297,5e-05,2]
[408626197,1774003846528,-1503.19447297,5e-05,2]
[408626198,1774003846538,-1503.19447297,5e-05,2]
[408626199,1774003846548,-1503.19447297,5e-05,2]
[408626200,1774003846559,-1503.19447297,5e-05,2]
[408626201,1774003846570,-1503.19447297,5e-05,2]
[408626202,1774003846580,-1503.19447297,5e-05,2]
[408626203,1774003846591,-1503.19447297,5e-05,2]
[408626204,1774003846601,-1503.19447297,5e-05,2]
[408626205,1774003846611,-1503.19447297,5e-05,2]
[408626206,1774003846621,-1503.19447297,5e-05,2]
[408626207,1774003846631,-1503.19447297,5e-05,2]
[408626208,1774003846642,-1503.19447297,5e-05,2]
[408626209,1774003846653,-1503.19447297,5e-05,2]
[408626210,1774003846663,-1503.19447297,5e-05,2]
[408626211,1774003846674,-1503.19447297,5e-05,2]
[408626212,1774003846684,-1503.19447297,5e-05,2]
[408626213,1774003846697,-1503.19447297,5e-05,2]
[408626214,1774003846708,-1503.19447297,5e-05,2]
[408626215,1774003846719,-1503.19447297,5e-05,2]
[408626216,1774003846730,-1503.19447297,5e-05,2]
[408626217,1774003846741,-1503.19447297,5e-05,2]
[408626218,1774003846751,-1503.19447297,5e-05,2]
[408626219,1774003846761,-518.06064966,5e-05,2]
[408626220,1774003846779,-985.13382331,5e-05,2]
[408626221,1774003846790,-496.78737217,5e-05,2]
[408626223,1774004041570,152.0,3e-08,60]
[408626225,1774004042031,152.0,4e-08,60]
[408626227,1774004042546,152.0,6e-08,60]
[408626250,1774005031859,-876.86326639,4.331e-05,2]
[408626252,1774005031871,-1127.74715667,4.331e-05,2]
[408626272,1774005037989,-2060.0041145,4.331e-05,2]
[408626273,1774005038006,-179.041094,4.555e-05,2]
[408626274,1774005038016,-300.0,4.582e-05,2]
[408626275,1774005038032,-500.0,4.583e-05,2]
[408626276,1774005038043,-500.0,4.583e-05,2]
[408626277,1774005038054,-501.69342998,4.583e-05,2]
[408626278,1774005038065,-502.22113917,4.583e-05,2]
[408626279,1774005038075,-282.81876766,4.583e-05,2]
[408626280,1774005038085,-125730.38210142,4.601e-05,2]
[408626281,1774005038105,-2849.8060003,4.601e-05,2]
[408626282,1774005038118,-31925.72967605,4.601e-05,2]
[408626283,1774005038131,-1520.08874999,4.601e-05,2]
[408626284,1774005038143,-5056.49508421,4.601e-05,2]
[408626295,1774005043092,-695.7,4.601e-05,2]
[408626299,1774005045975,-708.30073721,4.601e-05,2]
[408626300,1774005045986,-179.041094,4.746e-05,2]
[408626301,1774005045996,-179.041094,4.938e-05,2]
[408626302,1774005046007,-181.0587262,5e-05,2]
[408626303,1774005046017,-14661.7455616,5e-05,2]
[408626304,1774005046031,-162.380719,5.061e-05,2]
[408626305,1774005046040,-429.318,5.061e-05,2]
[408626306,1774005046050,-537.6845,5.061e-05,2]
[408626307,1774005046060,-279.84956028,5.061e-05,2]
[408626308,1774005046071,-162.380719,5.061e-05,2]
[408626309,1774005046082,-168.3888056,5.061e-05,2]
[408626310,1774005046092,-174.61919141,5.061e-05,2]
[408626311,1774005046103,-181.08010149,5.061e-05,2]
[408626312,1774005046113,-187.78006525,5.061e-05,2]
[408626313,1774005046123,-194.72792766,5.061e-05,2]
[408626314,1774005046134,-201.93286099,5.061e-05,2]
[408626315,1774005046144,-209.40437684,5.061e-05,2]
[408626316,1774005046155,-537.6845,5.061e-05,2]
[408626317,1774005046165,-217.15233878,5.061e-05,2]
[408626318,1774005046175,-225.18697532,5.061e-05,2]
[408626319,1774005046185,-233.51889341,5.061e-05,2]
[408626320,1774005046195,-242.15909246,5.061e-05,2]
[408626321,1774005046205,-251.11897888,5.061e-05,2]
[408626322,1774005046216,-41.19542025,5.061e-05,2]
[408626323,1774005046232,-219.21496085,5.061e-05,2]
[408626324,1774005046242,-270.0455652,5.061e-05,2]
[408626325,1774005046253,-280.03725112,5.061e-05,2]
[408626326,1774005046263,-162.81299789,5.061e-05,2]
[408626327,1774005046273,-290.39862941,5.061e-05,2]
[408626328,1774005046282,-301.14337872,5.061e-05,2]
[408626329,1774005046292,-2150.738,5.061e-05,2]
[408626330,1774005046301,-500.0,5.073e-05,2]
[408626331,1774005046311,-500.0,5.073e-05,2]
[408626332,1774005046320,-600.0,5.097e-05,2]
[408626333,1774005046329,-8351.43725027,5.1e-05,2]
[408626370,1774006232075,-479.30415038,4.269e-05,2]
[408626373,1774006232088,-2923.39973449,4.269e-05,2]
[408626375,1774006232099,-160.0,4.39e-05,2]
[408626377,1774006232108,-287.0,4.4e-05,2]
[408626379,1774006232118,-7061.57081115,4.401e-05,2]
[408626381,1774006232128,-431.26480507,4.483e-05,2]
[408626383,1774006232137,-366.2655764,4.483e-05,2]
[408626385,1774006232149,-133.7344236,4.483e-05,2]
[408626388,1774006232158,-4505.63434796,4.501e-05,15]
[408626600,1774006238120,-494.36565204,4.501e-05,15]
[408626601,1774006238134,-176.755,4.668e-05,2]
[408626602,1774006238144,-197.46081742,4.752e-05,2]
[408626603,1774006238154,-500.0,4.873e-05,2]
[408626604,1774006238165,-500.0,4.873e-05,2]
[408626605,1774006238176,-847.6501853,4.9e-05,2]
[408626606,1774006238188,-6020.13623295,4.9e-05,2]
[408626607,1774006238200,-8911.31155355,4.9e-05,2]
[408626608,1774006238211,-142954.80981525,4.9e-05,2]
[408626623,1774006240490,-523.75236559,4.9e-05,2]
[408626624,1774006240544,-2581.97041975,4.9e-05,2]
[408626625,1774006240557,-1609.74765536,4.9e-05,2]
[408626626,1774006240566,-500.0,4.973e-05,2]
[408626627,1774006240576,-500.7485477,4.973e-05,2]
[408626628,1774006240586,-501.64289347,4.973e-05,2]
[408626629,1774006240596,-500.0,4.973e-05,2]
[408626630,1774006240606,-537.6845,4.997e-05,2]
[408626631,1774006240616,-470.03212812,4.997e-05,2]
[408626632,1774006240628,-1258.43671265,4.997e-05,2]
[408626633,1774006240639,-422.26915923,4.997e-05,2]
[408626634,1774006240649,-609.70598206,4.998e-05,2]
[408626635,1774006240658,-500.0,5e-05,2]
[408626636,1774006240668,-500.0,5e-05,2]
[408626637,1774006240679,-500.0,5e-05,2]
[408626638,1774006240689,-500.0,5e-05,2]
[408626639,1774006240699,-500.0,5e-05,2]
[408626640,1774006240710,-500.0,5e-05,2]
[408626641,1774006240720,-500.0,5e-05,2]
[408626642,1774006240731,-500.0,5e-05,2]
[408626643,1774006240741,-500.0,5e-05,2]
[408626644,1774006240751,-500.0,5e-05,2]
[408626645,1774006240761,-500.0,5e-05,2]
[408626646,1774006240771,-367.34023632,5e-05,2]
[408626647,1774006240781,-1009.70334393,5e-05,2]
[408626651,1774006243203,-5076.62426651,5e-05,2]
[408626653,1774006243214,-500.0,5e-05,2]
[408626655,1774006243224,-500.0,5e-05,2]
[408626657,1774006243233,-500.0,5e-05,2]
[408626659,1774006243243,-500.0,5e-05,2]
[408626661,1774006243252,-500.0,5e-05,2]
[408626663,1774006243262,-204.27765281,5e-05,2]
[408626665,1774006243272,-500.0,5e-05,2]
[408626667,1774006243281,-500.0,5e-05,2]
[408626669,1774006243291,-508.46637778,5e-05,2]
[408626671,1774006243300,-825.80645851,5e-05,2]
[408626673,1774006243310,-825.80645851,5e-05,2]
[408626675,1774006243320,-825.80645851,5e-05,2]
[408626677,1774006243330,-825.80645851,5e-05,2]
[408626679,1774006243340,-825.80645851,5e-05,2]
[408626680,1774006243350,-825.80645851,5e-05,2]
[408626682,1774006243361,-825.80645851,5e-05,2]
[408626685,1774006243372,-825.80645851,5e-05,2]
[408626686,1774006243382,-429.30470567,5e-05,2]
[408626689,1774006243396,-285.0,5e-05,2]
[408626692,1774006243417,-111.50175284,5e-05,2]
[408626694,1774006243427,-701.99824716,5e-05,2]
[408626757,1774006246433,-123.80821135,5e-05,2]
[408626758,1774006246444,-825.80645851,5e-05,2]
[408626759,1774006246455,-825.80645851,5e-05,2]
[408626760,1774006246464,-825.80645851,5e-05,2]
[408626761,1774006246474,-825.80645851,5e-05,2]
[408626762,1774006246485,-825.80645851,5e-05,2]
[408626763,1774006246495,-825.80645851,5e-05,2]
[408626764,1774006246505,-825.80645851,5e-05,2]
[408626765,1774006246515,-825.80645851,5e-05,2]
[408626766,1774006246525,-825.80645851,5e-05,2]
[408626767,1774006246534,-696.75273872,5e-05,2]
[408626768,1774006246546,-129.05371979,5e-05,2]
[408626769,1774006246556,-825.80645851,5e-05,2]
[408626770,1774006246565,-825.80645851,5e-05,2]
[408626771,1774006246575,-825.80645851,5e-05,2]
[408626772,1774006246585,-825.80645851,5e-05,2]
[408626773,1774006246594,-825.80645851,5e-05,2]
[408626774,1774006246605,-825.80645851,5e-05,2]
[408626775,1774006246614,-825.80645851,5e-05,2]
[408626776,1774006246624,-825.80645851,5e-05,2]
[408626777,1774006246633,-825.80645851,5e-05,2]
[408626778,1774006246643,-825.80645851,5e-05,2]
[408626779,1774006246652,-825.80645851,5e-05,2]
[408626780,1774006246662,-825.80645851,5e-05,2]
[408626781,1774006246671,-825.80645851,5e-05,2]
[408626782,1774006246680,-825.80645851,5e-05,2]
[408626783,1774006246690,-194.62741607,5e-05,2]
[408626829,1774007438357,-179.041094,4.555e-05,2]
[408626830,1774007438368,-115.692906,5e-05,2]
[408626831,1774007438410,-3027.8288205,5e-05,2]
[408626832,1774007438420,-176.7550001,5e-05,2]
[408626833,1774007438431,-3121.33457308,5e-05,2]
[408626834,1774007438441,-1215.15334434,5e-05,2]
[408626931,1774007443478,-7033.928908,5e-05,2]
[408626932,1774007443490,-644.0,5e-05,2]
[408626933,1774007443574,-350.58213823,5e-05,2]
[408626951,1774007446609,-348.01294213,5e-05,2]
[408626952,1774007446621,-4234.669145,5e-05,2]
[408626953,1774007446631,-179.041094,5.034e-05,2]
[408626954,1774007446640,-511.36635282,5.073e-05,2]
[408626955,1774007446650,-248.92340818,5.073e-05,2]
[408626963,1774008632469,-1089.23622439,4.802e-05,2]
[408626991,1774008638695,-300.0,4.899e-05,2]
[408626993,1774008638705,-3008.34040225,4.9e-05,2]
[408626995,1774008638716,-439.634,4.9e-05,2]
[408627007,1774008638851,-20716.13687509,4.9e-05,2]
[408627008,1774008638863,-14107.7523215,4.9e-05,2]
[408627009,1774008638873,-35885.76890551,4.997e-05,2]
[408627010,1774008638884,-10000.0,5e-05,2]
[408627011,1774008638895,-353.72881356,5e-05,2]
[408627022,1774008641404,-298.19787937,5e-05,2]
[408627023,1774008641414,-543.08598846,5e-05,2]
[408627024,1774008641424,-543.08598846,5e-05,2]
[408627025,1774008641436,-543.08598846,5e-05,2]
[408627026,1774008641446,-543.08598846,5e-05,2]
[408627027,1774008641457,-543.08598846,5e-05,2]
[408627028,1774008641467,-543.08598846,5e-05,2]
[408627029,1774008641478,-543.08598846,5e-05,2]
[408627030,1774008641487,-531.12149192,5e-05,2]
[408627040,1774008643838,-2489.2845604,5e-05,2]
[408627041,1774008643849,-1687.36760829,5e-05,2]
[408627042,1774008643860,-857.9212373,5e-05,2]
[408627043,1774008643870,-1687.36760825,5.025e-05,2]
[408627044,1774008643881,-528.36071231,5.052e-05,2]
[408627057,1774008645909,-1159.00689594,5.052e-05,2]
[408627058,1774008645919,-500.0,5.073e-05,2]
[408627059,1774008645931,-500.0,5.073e-05,2]
[408627060,1774008645941,-207.1564085,5.073e-05,2]
[408627065,1774009361684,14005.9178,8.4e-05,120]
[408627106,1774009831678,-441.70512035,4.413e-05,2]
[408627109,1774009831690,-673.51268165,4.413e-05,2]
[408627173,1774011031897,-187.94983642,3.505e-05,2]
[408627174,1774011031907,-170.56996358,3.577e-05,2]
[408627260,1774011037956,-1187.44892998,3.577e-05,2]
[408627262,1774011037968,-207.00989142,3.84e-05,2]
[408627264,1774011037978,-179.438779,4.457e-05,2]
[408627266,1774011037988,-278.0,4.896e-05,2]
[408627268,1774011037999,-11577.09431996,4.897e-05,2]
[408627269,1774011038009,-179.438779,4.926e-05,2]
[408627271,1774011038018,-641.0,4.939e-05,2]
[408627273,1774011038028,-2207.0,4.939e-05,2]
[408627275,1774011038038,-1397.0,4.939e-05,2]
[408627277,1774011038049,-31872.8133888,4.964e-05,2]
[408627279,1774011038059,-557.5788265,4.997e-05,2]
[408627281,1774011038070,-162.380719,4.997e-05,2]
[408627283,1774011038079,-168.3888056,4.997e-05,2]
[408627285,1774011038090,-174.61919141,4.997e-05,2]
[408627287,1774011038102,-181.08010149,4.997e-05,2]
[408627289,1774011038112,-187.78006525,4.997e-05,2]
[408627291,1774011038122,-194.72792766,4.997e-05,2]
[408627293,1774011038132,-291.8629749,4.997e-05,2]
[408627295,1774011038143,-537.6845,4.997e-05,2]
[408627297,1774011038153,-162.81299789,4.997e-05,2]
[408627299,1774011038162,-1049.9088238,4.997e-05,2]
[408627301,1774011038182,-1100.8291762,4.997e-05,2]
[408627302,1774011038192,-356.03085031,5e-05,2]
[408627303,1774011038203,-526.47356543,5e-05,2]
[408627304,1774011038214,-506.23186913,5e-05,2]
[408627305,1774011038224,-506.23186913,5e-05,2]
[408627306,1774011038234,-506.23186913,5e-05,2]
[408627307,1774011038244,-506.23186913,5e-05,2]
[408627308,1774011038254,-506.23186913,5e-05,2]
[408627309,1774011038263,-506.23186913,5e-05,2]
[408627310,1774011038273,-506.23186913,5e-05,2]
[408627311,1774011038282,-506.23186913,5e-05,2]
[408627312,1774011038294,-506.23186913,5e-05,2]
[408627313,1774011038303,-506.23186913,5e-05,2]
[408627314,1774011038312,-506.23186913,5e-05,2]
[408627315,1774011038323,-506.23186913,5e-05,2]
[408627316,1774011038332,-506.23186913,5e-05,2]
[408627317,1774011038342,-506.23186913,5e-05,2]
[408627318,1774011038353,-506.23186913,5e-05,2]
[408627319,1774011038362,-506.23186913,5e-05,2]
[408627320,1774011038372,-506.23186913,5e-05,2]
[408627321,1774011038383,-506.23186913,5e-05,2]
[408627322,1774011038393,-506.23186913,5e-05,2]
[408627323,1774011038403,-506.23186913,5e-05,2]
[408627324,1774011038414,-506.23186913,5e-05,2]
[408627325,1774011038426,-506.23186913,5e-05,2]
[408627326,1774011038435,-506.23186913,5e-05,2]
[408627327,1774011038445,-506.23186913,5e-05,2]
[408627328,1774011038455,-506.23186913,5e-05,2]